Cogmind - Beta 17 @@@ ROGUE MODE // 2026.08.17 @ 21:01:23 Player: Niamak Result: Self-destructed Performance ------------- Evolutions (2) 1000 Regions Visited (3) 600 Robots Destroyed (13) 65 Value Destroyed (444) 444 Prototype IDs (0) 0 Alien Tech Used (0) 0 Bonus (0) 0 TOTAL SCORE: 2109 Bonus ------- None Cogmind --------- Core Integrity 384/550 Matter 204/300 Energy 200/200 System Corruption 0% Temperature Danger (443) Movement Walking (140) Location -8/Materials Parts ------- > --- POWER (1) -------- Subdweller Power Source > --- PROPULSION (2) --- Makeshift Leg > --- UTILITY (6) ------ Small Storage Unit Improved Signal Interpreter > --- WEAPON (2) ------- Beamcaster Assault Rifle > --- INVENTORY (8) ---- Ion Engine Deuterium Engine Makeshift Power Source Makeshift Leg Airjet Medium Laser Peak State ------------ > --- POWER ------------ Subdweller Power Source > --- PROPULSION ------- Carbon-fiber Leg Myomer Leg > --- UTILITY ---------- Small Storage Unit Improved Signal Interpreter Seismic Detector > --- WEAPON ----------- Beamcaster Bore Cannon > --- INVENTORY -------- Ion Engine Makeshift Power Source Makeshift Leg Makeshift Leg Airjet Medium Laser Assault Rifle Makeshift Sword [Rating: 29] Favorites ----------- Power Light Ion Engine Engine Light Ion Engine Propulsion Light Treads Treads Light Treads Leg Carbon-fiber Leg Utility Small Storage Unit Device Seismic Detector Storage Small Storage Unit Processor Improved Signal Interpreter Protection Scrap Shield Weapon Assault Rifle Energy Gun Beamcaster Ballistic Gun Assault Rifle Ballistic Cannon Bore Cannon Launcher Grenade Launcher Build | -11 -10 -10 -8 ------- Run | Yrd Mat Sub Mat Slots Evolved 4 | . . . 4 Power . | . . . . Propulsion . | . . . . Utility 4 | . . . 4 Weapon . | . . . . Parts Attached 17 | 7 . 8 2 Power 2 | 1 . 1 . Engine 2 | 1 . 1 . Core . | . . . . Reactor . | . . . . Propulsion 5 | 2 . 2 1 Treads 2 | 2 . . . Leg 3 | . . 2 1 Wheel . | . . . . Hover . | . . . . Flight . | . . . . Utility 4 | 2 . 1 1 Device 1 | 1 . . . Storage 1 | 1 . . . Processor 1 | . . . 1 Hackware . | . . . . Protection 1 | . . 1 . Artifact . | . . . . Weapon 6 | 2 . 4 . Energy Gun 2 | 1 . 1 . Energy Cannon . | . . . . Ballistic Gun 2 | 1 . 1 . Ballistic Cannon 1 | . . 1 . Launcher 1 | . . 1 . Special Weapon . | . . . . Impact Weapon . | . . . . Slashing Weapon . | . . . . Piercing Weapon . | . . . . Special Melee Weapon . | . . . . Unidentified Prototypes . | . . . . Parts Lost 6 | . . 2 4 Power 1 | . . 1 . Propulsion 2 | . . . 2 Utility 2 | . . 1 1 Weapon 1 | . . . 1 Highest Loss Streak 2 | . . 2 2 To Critical Strikes . | . . . . Average Backups 4 | 1 3 4 7 Power 1 | . 2 1 2 Propulsion . | . . . 2 Utility . | . 1 1 . Weapon 1 | . . 2 2 Tool/Special . | . . . . Unused Backups 6 | . . 2 4 Power 3 | . . 1 2 Propulsion 1 | . . . 1 Utility 1 | . . 1 . Weapon 1 | . . . 1 Tool/Special . | . . . . Average Slot Usage (%) 85 | . 100 88 68 Engine 11 | . 14 12 9 Treads 13 | . 28 14 . Leg 11 | . . 13 18 Device 7 | . 14 6 6 Storage 8 | . 14 7 9 Processor 1 | . . . 7 Protection 3 | . . 5 . Energy Gun 9 | . 14 7 9 Ballistic Gun 8 | . 14 8 2 Ballistic Cannon 4 | . . 5 6 Launcher 3 | . . 6 . Peak Build Rating 29 | 7 7 25 29 Average Rating 14 | 5 7 15 26 On Entrance 9 | . 7 7 25 Avg Prop Armor Cover (%) . | . . . . Naked Turns . | . . . . Heaviest Build 28 | 13 13 28 25 Greatest Support 40 | 40 40 40 40 Greatest Overweight (x) . | . . . . Average Overweight (x) . | . . . . Largest Inventory Capacity 8 | 8 8 8 8 Average Capacity 7 | 7 8 6 8 Most Carried 8 | 3 4 7 8 Average Carried 4 | 1 3 4 7 Final Capacity 8 | 8 8 8 8 Final Carried 7 | 3 4 7 6 Class Distribution -------------------- 57% | Mutant 42% | Scavenger-Mutant Dominant Class ---------------- Mutant | -10/Materials Mutant | -10/Subcaves Scavenger-Mutant | -8/Materials Resources | -11 -10 -10 -8 ----------- Run | Yrd Mat Sub Mat Matter Collected 574 | 283 . 241 50 Remotely . | . . . . Salvage Created 410 | 103 . 161 146 Parts 18 | 4 . 9 5 Haulers Intercepted . | . . . . Recyclers Shooed . | . . . . Parts Field Recycled . | . . . . Retrieved Matter . | . . . . Parts Self-Destructed 10 | . . 10 . Prevented . | . . . . Parts Restored . | . . . . Kills | -11 -10 -10 -8 ------- Run | Yrd Mat Sub Mat Combat Hostiles Destroyed 10 | . . 7 3 Guns 6 | . . 3 3 AOE 4 | . . 4 . Classes Destroyed 5 | 2 . 2 1 Tunneler 2 | 2 . . . Recycler 1 | 1 . . . Grunt 2 | . . . 2 Sentry 2 | . . 1 1 Subdweller 6 | . . 6 . Best Kill Streak 3 | 2 . 3 2 Combat Bots Only 3 | . . 3 2 Max Kills in Single Turn 2 | 1 . 2 1 Gunslinging . | . . . . Exploded 2 | . . 2 . Melee . | . . . . Uniques/NPCs Destroyed . | . . . . Combat | -11 -10 -10 -8 -------- Run | Yrd Mat Sub Mat Hostile Shots Fired 89 | . . 45 44 Missed 20 | . . 15 5 Hits 69 | . . 30 39 Projectile 69 | . . 30 39 Critical Strikes 2 | . . 1 1 Damage Taken 1273 | . . 655 618 Core 222 | . . 56 166 Absorbed by Shields . | . . . . Core Remaining (%) 88 | 100 . 77 . Volleys Fired 51 | 5 1 22 23 Largest 2 | 2 2 2 2 Hottest 123 | 70 70 123 123 Shots Fired 82 | 10 2 29 41 Gun 63 | 10 2 15 36 Cannon 10 | . . 5 5 Launcher 9 | . . 9 . Special . | . . . . Kinetic 42 | 5 1 13 23 Thermal 31 | 5 1 7 18 Explosive 9 | . . 9 . Electromagnetic . | . . . . Robot Hit Streak 10 | 2 . 10 5 Robot Miss Streak 6 | 1 2 3 6 Penetration Max . | . . . . Secondary Targets 1 | . . . 1 Max Gunslinging Chain 1 | . . . 1 Shots Hit Robots 46 | 5 . 22 19 Core Hits 32 | 4 . 22 6 Critical Kills . | . . . . Critical Parts Destroyed 3 | . . 1 2 Critical Strikes 9 | 1 . 4 4 Burn 4 | 1 . 1 2 Destroy 5 | . . 3 2 Melee Attacks . | . . . . Impact . | . . . . Slashing . | . . . . Piercing . | . . . . Sneak Attacks . | . . . . Combat Hostiles . | . . . . Follow-up Attacks . | . . . . Damage Inflicted 2000 | 63 . 1598 339 Guns 548 | 63 . 176 309 Cannons 85 | . . 55 30 Explosions 1367 | . . 1367 . Melee . | . . . . Ramming . | . . . . Kinetic 286 | 39 . 157 90 Thermal 347 | 24 . 74 249 Explosive 1367 | . . 1367 . Electromagnetic . | . . . . Impact . | . . . . Slashing . | . . . . Piercing . | . . . . Highest Corruption . | . . . . Average Corruption . | . . . . Corruption Purged . | . . . . Corruption Blocked . | . . . . Overload Shots . | . . . . Overflow Damage . | . . . . Projectiles . | . . . . Explosions . | . . . . Melee . | . . . . Knockbacks 1 | . . . 1 Impact . | . . . . Kinetic 1 | . . . 1 Secondary . | . . . . Self-Inflicted Damage 43 | . . 43 . Shots 2 | . . 2 . Rammed . | . . . . Targets Rammed . | . . . . Kicked . | . . . . Crushed . | . . . . Highest Temperature 533 | 27 9 12 533 Average Temperature 231 | 12 6 5 345 Received Heat Transfer 357 | . . 87 270 Effects 10 | . . . 10 Shutdowns 1 | . . . 1 Energy Bleed 4 | . . . 4 Interference 2 | . . . 2 Matter Decay 2 | . . . 2 Damage (core) 1 | . . . 1 Siege Activations . | . . . . Martial Activations . | . . . . Shielding Activations . | . . . . Robots Disrupted . | . . . . Combat Hostiles . | . . . . Robots Corrupted . | . . . . Combat Hostiles . | . . . . Parts Fried . | . . . . Impact Corruptions . | . . . . Robots Melted . | . . . . Combat Hostiles . | . . . . Parts Melted 2 | 1 . . 1 Heat Transferred 962 | 148 . 222 592 Parts Sabotaged . | . . . . Parts Stolen . | . . . . Parts Stripped . | . . . . Power Chain Reactions . | . . . . Alert | -11 -10 -10 -8 ------- Run | Yrd Mat Sub Mat Maximum Alert Level . | . . . . Low Security (%) 100 | 100 100 . 100 Level 1 . | . . . . Level 2 . | . . . . Level 3 . | . . . . Level 4 . | . . . . Level 5 . | . . . . High Security . | . . . . Max Security . | . . . . Peak Influence 41 | 10 . . 41 Initial . | . . . . Average 2 | 1 . . 5 Influence Increases 118 | 15 . 20 83 Destroy 0b10 Robot/C 80 | . . 20 60 Destroy 0b10 Robot/NC 15 | 15 . . . Destroy Leader 20 | . . . 20 Destroy Structure 3 | . . . 3 Influence Decreases 87 | 15 . 20 52 Time Decay 57 | 15 . 20 22 Lost Part 30 | . . . 30 Squads Dispatched 1 | . . . 1 Investigation . | . . . . Extermination . | . . . . Reinforcement 1 | . . . 1 Assault . | . . . . Garrison . | . . . . Intercept . | . . . . Searches Triggered . | . . . . Construction Impeded . | . . . . Haulers Reinforced . | . . . . Active Scanning Responses . | . . . . Cargo Convoy Interrupts . | . . . . Stealth | -11 -10 -10 -8 --------- Run | Yrd Mat Sub Mat Distress Signals . | . . . . Communications Jammed . | . . . . Distress Signals . | . . . . Times Spotted 26 | . 1 18 7 Peak Tracking Total 10 | . 1 10 5 Tactical Retreats . | . . . . Traps | -11 -10 -10 -8 ------- Run | Yrd Mat Sub Mat Traps Triggered . | . . . . Indirectly . | . . . . Trap Hack Attempts . | . . . . Triggered . | . . . . Disarmed . | . . . . Reprogrammed . | . . . . Reused . | . . . . Traps Extracted . | . . . . Installed . | . . . . Triggered . | . . . . Machines | -11 -10 -10 -8 ---------- Run | Yrd Mat Sub Mat Machines Disabled . | . . . . Max in Single Turn . | . . . . Machines Repaired . | . . . . Machines Dismantled . | . . . . Machines Sabotaged . | . . . . Overloaded Fab Kills . | . . . . Hacking | -11 -10 -10 -8 --------- Run | Yrd Mat Sub Mat Machines Accessed 1 | . . . 1 Terminals . | . . . . Fabricators . | . . . . Repair Stations . | . . . . Recycling Units . | . . . . Scanalyzers 1 | . . . 1 Garrison Access . | . . . . Total Hacks 2 | . . . 2 Successful 1 | . . . 1 Failed 1 | . . . 1 Catastrophic . | . . . . Database Lockouts . | . . . . Manual . | . . . . Terminals . | . . . . Fabricators . | . . . . Repair Stations . | . . . . Recycling Units . | . . . . Scanalyzers 2 | . . . 2 Garrison Access . | . . . . Terminal Hacks . | . . . . Fabricator Hacks . | . . . . Repair Station Hacks . | . . . . Recycling Unit Hacks . | . . . . Scanalyzer 1 | . . . 1 Retrieve Study 1 | . . . 1 Garrison Access Hacks . | . . . . Unauthorized Hacks . | . . . . Terminals . | . . . . Fabricators . | . . . . Repair Stations . | . . . . Recycling Units . | . . . . Scanalyzers . | . . . . Garrison Access . | . . . . Data Cores Recovered . | . . . . Used . | . . . . Hacking Detections 1 | . . . 1 Full Trace Events . | . . . . Feedback Events . | . . . . Feedback Blocked . | . . . . Robot Schematics Acquired . | . . . . Robots Built . | . . . . Authchips . | . . . . Time . | . . . . Total Robot Build Rating . | . . . . Part Schematics Acquired . | . . . . Parts Built . | . . . . Authchips . | . . . . Time . | . . . . Total Part Build Rating . | . . . . Part Studies Acquired 1 | . . . 1 Parts Repaired . | . . . . Time . | . . . . Parts Recycled . | . . . . Recycled Matter . | . . . . Retrieved Matter . | . . . . Retrieved Components . | . . . . Parts Scanalyzed . | . . . . Part Schematics Acquired . | . . . . Parts Damaged . | . . . . Bothacking | -11 -10 -10 -8 ------------ Run | Yrd Mat Sub Mat Used RIF Installer . | . . . . Robots Hacked . | . . . . Non-combat . | . . . . Combat . | . . . . Robot Hacks Applied . | . . . . Relay Couplers Released . | . . . . Fabnet Peak Effective % . | . . . . Robots Rewired . | . . . . Allies Hacked . | . . . . Hacks Repelled . | . . . . Allies | -11 -10 -10 -8 -------- Run | Yrd Mat Sub Mat Total Allies . | . . . . Largest Group . | . . . . Highest-Rated Group . | . . . . Highest-Rated Ally . | . . . . Total Orders . | . . . . Ally Attacks . | . . . . Total Damage . | . . . . Kills . | . . . . Allies Corrupted . | . . . . Allies Melted . | . . . . Intel | -11 -10 -10 -8 ------- Run | Yrd Mat Sub Mat Active Infowar (turns) 466 | 43 123 204 96 Seismic 466 | 43 123 204 96 Robot Analysis Total . | . . . . Derelict Logs Recovered 1 | . . 1 . Drone Launches . | . . . . Drone Recoveries . | . . . . Exploration | -11 -10 -10 -8 ------------- Run | Yrd Mat Sub Mat Turns Passed 846 | 124 123 449 150 Spaces Moved 469 | 61 75 271 62 Core 4 | 4 . . . Treads 246 | 57 75 114 . Legs 219 | . . 157 62 Wheels . | . . . . Hover . | . . . . Flight . | . . . . Fastest Speed 50 | 50 160 120 112 Average Speed 139 | 152 160 136 114 Slowest Speed 160 | 160 160 160 120 Overloaded Moves . | . . . . Propulsion Burnouts . | . . . . Robots Hopped . | . . . . Potential Cave-ins . | . . . . Cave-ins Triggered . | . . . . Exploration Rate (%) 12 | 4 13 22 9 Regions Visited 3 Branch Regions 1 Pre-discovered Areas . | . . . . Known Exits Taken . | . . . . Unknown Exits Taken 3 | 1 1 1 . Scrap Searched . | . . . . Spaces Dug . | . . . . Terrain Destroyed 34 | . . 32 2 Melee . | . . . . Projectile 6 | . . 4 2 AOE 28 | . . 28 . Terrain Rammed . | . . . . Walls Destroyed . | . . . . Machines Disabled . | . . . . Actions | -11 -10 -10 -8 --------- Run | Yrd Mat Sub Mat Total 579 | 82 76 321 100 Wait 8 | . . . 8 Move 466 | 60 74 270 62 Hop . | . . . . Pick Up 23 | 10 1 9 3 Fast Attach 3 | . . 3 . Attach 15 | 7 . 5 3 Detach 1 | . . 1 . Swap 2 | . . 2 . Drop 8 | . . 7 1 Fire 51 | 5 1 22 23 Melee . | . . . . Ram . | . . . . Kick . | . . . . Crush . | . . . . Escape Stasis . | . . . . Rewire . | . . . . Trap . | . . . . Miscellaneous 2 | . . 2 . Route ------- -11/Scrapyard -10/Materials -10/Subcaves -8/Materials (discovered 1 exit: [*Sto]) History --------- Turn | Location | Event 7 | -11/Scrapyard | Discovered new exit (range 14) 125 | -11/Scrapyard | Entered Materials 225 | -10/Materials | Discovered new exit (range 15) 248 | -10/Materials | Entered Subcaves 319 | -10/Subcaves | Build established: Mutant 367 | -10/Subcaves | Shifting Twisted Machinery released Piercing Trap 419 | -10/Subcaves | Ambushed by swarm of Subdwellers 419 | -10/Subcaves | Ambushed by Subdwellers from Twisted Machinery 419 | -10/Subcaves | Ambushed by Subdwellers from Twisted Machinery 419 | -10/Subcaves | Ambushed by Subdwellers from Twisted Machinery 419 | -10/Subcaves | Ambushed by Subdwellers from Twisted Machinery 674 | -10/Subcaves | Discovered new exit (range 7) 697 | -10/Subcaves | Entered Materials 697 | -8/Materials | Evolved 4 slots: Utility x4 757 | -8/Materials | Discovered new exit (range 15) 782 | -8/Materials | Build established: Scavenger-Mutant 847 | -8/Materials | Self-destructed Last Messages --------------- 00819_ Overheating: Matter decay (-25). 00820_ Overheating: Energy bleed (-24). [Achievement: Well Done] 00825_ Overheating: Core damaged (-77). 00826_ Power failure, Sub. Power Source shutdown. 00826_ Myomer Leg destroyed. 00828_ Overheating: Energy bleed (-25). 00828_ G-47 Trooper destroyed. 00828_ Switching to secondary target: G-47 Trooper. 00828_ U-05 Engineer builds a Door. 00829_ Acquired 50 matter. 00831_ Overheating: System interference. 00831_ Beamcaster temporarily disabled. 00838_ Slug penetrates Wall. 00839_ Overheating: Energy bleed (-26). 00840_ Overheating: Matter decay (-22). 00841_ G-47 Trooper destroyed. 00841_ Slug penetrates Wall. 00845_ Wall collapses. 00846_ Carbon-fiber Leg+ destroyed. Map ----- +----------------------------------------------------+ | ??????????????# # # """ """ # | | ??????????????# # + """ """ # | | ??????????????# + # # | | ??????????????# # # # | | ??????????????# # # # | | ??????????????# ?# ########### | | ??????????????# ?# #?????????? | | ??????????????###??# #?????????? | | ???????????????????# #?????????? | | ???????????????????# #?????????? | | ???????????????????# ##########? | | ???????????????????# # #? | | ???????????????????# # #? | | ???????????????????# # #? | | ???????????????????# # #? | | ???????????????????# + #? | | ???????????????????# # #? | | ???????????????????## ## #? | | ????????????????????# ## #? | | ????????????????????# ## #? | | ????????????????????# ###########? | | ??????????????????### ### #?? | | ??????????????????# # #?? | | ??????????????????# =#= #?? | | ??????????????????# rYg% #?? | | ??????????????????# %u;@ #?? | | ??????????????????# / h # #?? | | ??????????????????## #########?? | | ???????????????????# #?????????? | | ???????????????????# #?????????? | | ???????????????????+ #?????????? | | ???????????????????# #?????????? | | ???????????????????# #?????????? | | ???????????????????# #?????????? | | ??????????????????? ?????????? | | ??????????????????? = ?????????? | | ??????????????????? ?????????? | | ??????????????????? < ?????????? | | ????????????????????? ???????????? | | ?????????????????????????????????? | | ?????????????????????????????????? | | ?????????????????????????????????? | | ?????????????????????????????????? | | ?????????????????????????????????? | | ?????????????????????????????????? | | ?????????????????????????????????? | | ?????????????????????????????????? | | ?????????????????????????????????? | | ?????????????????????????????????? | | ?????????????????????????????????? | +----------------------------------------------------+ Best States ------------- Heat Dissipation 31 Energy Generation 15 Energy Capacity 200 Matter Stores 300 Matter Capacity 300 Sight Range 16 Terrain Scan Density 10 Armor Coverage 800 Evasion (%) 55 Recoil Reduction 2 Item Schematics ----------------- None Robot Schematics ------------------ None Fabricated ------------ Nothing Repaired ---------- Nothing Studied --------- Carbon-fiber Leg | -8/Materials | Hacked Alien Tech Used ----------------- None Achievements -------------- Survival Of The Most Covered Well Done Challenges ------------ None Game ------ Seed ActuatorHardlightMount Manual? 0 Play Time 00:21:14 Cumulative 6.7 hours Start 2026.08.17 @ 17:48:01 End 2026.08.17 @ 21:01:23 Sessions 2 Manual Loads 0 Difficulty Rogue Special Mode None Game No. 19 Rogue 19 Adventurer 0 Explorer 0 Win Type - Total 0 Types 0/0/0/0/0/0/0/0/0/0 Lore% 10 Gallery% 14 Achievement% 11 Wizard Run 0 Options --------- Layout 2 ASCII 0 Keyboard 0 Movement Mouse Keybinds 0 Fullscreen 1 Font 16/SmallcapsGlow Map View 55x47 Zoom Use 2% Tactical HUD 1 Map Filters NONE Filters NONE Steam X RUN: ae0315fe-2ad5-46c0-bffa-f4ce1daf3e7e